bitfinex/quotes_ETHUSD_20250801
["timestamp","ask_amount","ask_price","bid_price","bid_amount"]
[1754009832100,3.55,3677.7,3677.6,0.136]
[1754009832277,5.9786,3677.7,3677.6,0.136]
[1754009832473,7.139198,3677.7,3677.4,0.136]
[1754009832706,3.55,3677.5,3677.4,0.136]
[1754009833105,2.9786,3677.5,3677.4,0.136]
[1754009834115,0.55,3677.4,3675.7,2.72056779]
[1754009834334,4.160598,3677.7,3674.8,2.85477106]
[1754009834335,3.55,3677.2,3676.8,0.136]
[1754009834518,0.55,3677.0,3676.8,0.136]
[1754009834722,3.0,3677.0,3676.9,0.15219666]
[1754009834898,5.318,3677.0,3676.9,0.15219666]
[1754009835083,10.3018,3677.0,3676.9,0.15219666]
[1754009835277,10.3018,3677.0,3675.4,0.20145125]
[1754009835278,3.0,3677.0,3676.7,2.7197692]
[1754009835494,3.0,3677.0,3675.7,0.136]
[1754009835703,3.0,3677.4,3675.9,2.7204222]
[1754009835933,3.0,3677.4,3676.0,0.84230813]
[1754009836135,3.52226574,3677.4,3676.1,0.4056531]
[1754009836299,1.53846574,3677.4,3676.2,0.4056531]
[1754009836495,1.9384,3677.3,3676.3,0.4056531]
[1754009836694,1.9384,3677.3,3675.7,0.4745]
[1754009836695,1.9384,3677.3,3676.4,0.4056531]
[1754009836894,5.318,3677.3,3676.5,0.40547419]
[1754009837193,9.07767695,3680.3,3676.2,0.4287]
[1754009837194,1.9384,3678.4,3676.6,0.87997419]
[1754009837394,5.318,3678.3,3676.7,0.6135275]
[1754009837631,1.9384,3678.2,3676.9,2.71965661]
[1754009837894,6.532,3679.6,3675.9,5.318]
[1754009837895,1.9384,3678.1,3676.0,9.07767695]
[1754009838124,1.9384,3678.1,3676.7,0.4745]
[1754009838310,2.3702,3678.1,3676.2,2.9212838]
[1754009838608,3.0,3678.0,3677.3,2.71937141]
[1754009838814,3.0,3677.8,3677.4,0.15183618]
[1754009839017,3.0,3677.8,3677.5,0.40483331]
[1754009839237,1.38963105,3677.7,3677.6,0.25299713]
[1754009839452,0.76988455,3677.7,3677.6,0.25299713]
[1754009839597,1.28589592,3677.7,3677.6,0.25299713]
[1754009839795,1.81703951,3677.7,3677.6,0.25299713]
[1754009839993,1.26703951,3677.7,3675.4,1.6343]
[1754009840308,0.4318,3677.6,3675.4,1.6343]
[1754009840514,3.0,3677.4,3675.4,1.6343]
[1754009840694,0.4318,3677.3,3676.0,2.7202967]
[1754009840895,0.87478,3677.2,3675.4,1.6343]
[1754009841116,0.87478,3677.2,3676.0,2.72028165]
[1754009841334,0.87478,3677.2,3675.8,2.72046981]
[1754009841627,0.87478,3677.2,3675.8,0.20269772]
[1754009841628,4.9384,3677.1,3675.8,0.20269772]
[1754009841829,4.9384,3677.1,3675.4,1.6335]
[1754009842065,0.87478,3677.2,3675.4,1.6335]
[1754009842066,5.994698,3677.0,3675.4,2.11532125]
[1754009842328,2.3702,3676.9,3674.8,2.72123652]
[1754009842545,3.0,3676.7,3674.8,0.20698698]
[1754009842689,5.7468,3676.8,3674.8,0.20698698]
[1754009842896,1.9384,3676.6,3676.0,2.72029251]
[1754009843161,3.0,3677.1,3676.0,2.72029251]
[1754009843162,0.4318,3677.6,3676.1,2.18835122]
[1754009843363,5.41999636,3677.6,3676.9,2.71961577]
[1754009843572,5.41999636,3677.6,3677.0,0.25295122]
[1754009843573,5.315,3677.6,3677.0,0.25295122]
[1754009843877,5.315,3678.2,3677.2,2.71946045]
[1754009844036,5.314,3678.5,3677.3,0.25295122]
[1754009844384,6.534,3679.4,3678.5,2.71848289]
[1754009844530,6.534,3680.7,3678.6,0.25295122]
[1754009844719,5.314,3680.6,3678.7,0.25295122]
[1754009844920,6.534,3680.7,3679.7,2.71758795]
[1754009845159,0.136,3680.2,3679.8,0.25295122]
[1754009845322,2.0744,3680.1,3679.9,0.25295122]
[1754009845526,2.0744,3680.1,3677.6,2.71915178]
[1754009845527,2.0744,3680.1,3680.0,0.25295122]
[1754009845834,3.0,3680.0,3677.0,0.4745]
[1754009846036,0.55,3679.6,3677.8,2.71901647]
[1754009846237,0.136,3678.4,3677.9,0.136]
[1754009846434,0.136,3678.4,3677.0,0.4745]
[1754009846435,1.9384,3678.3,3677.0,0.4745]
[1754009846632,0.73864,3678.2,3677.8,0.136]
[1754009846917,2.67704,3678.2,3677.8,0.136]
[1754009847121,0.73864,3678.2,3677.8,0.136]
[1754009847366,1.9384,3678.1,3677.8,0.1352]
[1754009847521,0.73864,3678.2,3677.7,2.71908974]
[1754009847726,0.136,3678.3,3677.7,0.136]
[1754009848062,5.311,3678.5,3678.0,2.71886881]
[1754009848262,5.311,3679.0,3677.5,0.4745]
[1754009848475,5.311,3679.0,3677.6,2.4099]
[1754009848763,0.0445,3679.5,3679.1,2.71798876]
[1754009848764,5.31,3679.5,3679.1,2.71798876]
[1754009848923,0.25259472,3679.4,3677.8,3.0]
[1754009849125,0.25259472,3679.3,3679.2,2.71798217]
[1754009849347,0.25259472,3679.3,3679.2,5.12788217]
[1754009849768,0.25259472,3679.3,3679.1,0.20194191]
[1754009849928,0.2525056,3679.2,3679.1,2.71805604]
[1754009850128,0.2525056,3679.2,3679.0,2.71810923]
[1754009850338,0.2525056,3679.1,3677.7,3.0]
[1754009850538,0.2525056,3679.0,3678.1,2.71878434]
[1754009850750,0.2525056,3678.9,3678.6,2.71839162]
[1754009850928,0.2525056,3678.8,3678.4,2.71856328]
[1754009851129,0.2525056,3678.7,3678.6,2.7184239]
[1754009851328,0.2525056,3678.7,3678.4,2.71855565]
[1754009851564,0.2525056,3678.6,3678.1,2.71873112]
[1754009851770,0.2525056,3678.5,3678.4,2.71857329]
[1754009852124,0.2525056,3678.5,3677.8,2.71894439]
[1754009852322,2.1909056,3678.4,3677.2,2.4099]
[1754009852521,2.1909056,3678.4,3677.6,2.7191588]
[1754009852522,0.2525056,3678.3,3677.6,2.7191588]
[1754009852726,0.2525056,3678.2,3677.6,1.9354]
[1754009852952,0.2525056,3678.1,3677.7,2.71906782]
[1754009853252,0.2525056,3678.0,3677.6,1.9354]
[1754009853461,0.2525056,3677.9,3677.2,0.20402399]
[1754009853630,0.2525056,3677.9,3677.8,2.7190168]
[1754009853831,0.25203605,3677.9,3677.8,5.1289168]
[1754009854155,0.25197925,3677.9,3677.8,5.64180848]
[1754009854342,0.25197925,3677.9,3677.8,5.1289168]
[1754009854772,1.9384,3680.3,3678.0,2.71886895]
[1754009854945,1.9384,3680.3,3678.5,0.55]
[1754009855148,1.9384,3680.3,3679.2,0.55]
[1754009855449,0.19384,3680.2,3679.2,0.4745]
[1754009855649,1.9384,3680.4,3679.4,0.55]
[1754009855850,1.9384,3680.4,3679.2,2.71791394]
[1754009856058,1.9384,3680.4,3679.2,0.55]
[1754009856263,1.9384,3680.4,3678.9,1.9354]
[1754009856647,1.9384,3680.4,3679.4,2.71777348]
[1754009857005,1.9384,3681.0,3679.7,3.26761284]
[1754009857298,5.305,3681.2,3680.3,2.71709615]
[1754009857449,5.305,3681.2,3680.8,2.71679818]
[1754009857656,1.9384,3681.5,3680.3,0.55]
[1754009857855,0.19384,3681.4,3680.3,0.55]
[1754009858180,0.32984,3681.4,3680.9,0.136]
[1754009858386,1.9384,3681.3,3680.9,0.136]
[1754009858694,1.9829,3681.2,3679.3,3.55]
[1754009858868,1.9384,3681.2,3679.8,0.55]
[1754009859072,1.9384,3681.2,3680.8,0.136]
[1754009859073,2.151624,3681.2,3680.8,0.136]
[1754009859274,0.213224,3681.2,3680.8,0.136]
[1754009859575,1.9384,3681.1,3680.8,0.136]
[1754009859782,1.9384,3681.0,3680.8,0.136]
[1754009860094,0.136,3681.3,3680.8,0.136]
[1754009860797,0.136,3681.5,3681.0,0.136]
[1754009860992,0.91692,3681.5,3681.0,0.136]
[1754009861197,2.85532,3681.5,3681.0,0.136]
[1754009861692,0.78092,3681.5,3681.0,0.136]
[1754009861881,0.78092,3681.5,3680.6,2.71693528]
[1754009862198,5.303,3681.8,3680.6,2.71693528]
[1754009862199,5.303,3681.8,3681.2,0.136]
[1754009862397,0.136,3681.7,3681.2,0.136]
[1754009862575,1.9384,3681.6,3681.2,0.136]
[1754009862770,0.136,3681.7,3681.2,0.136]
[1754009863093,1.9384,3681.6,3681.2,0.136]
[1754009863293,0.73774,3681.5,3681.2,0.136]
[1754009863496,2.67614,3681.5,3681.2,0.136]
[1754009863663,1.9384,3681.4,3681.2,0.136]
[1754009864095,1.9384,3681.4,3681.1,0.136]
[1754009864791,0.73774,3681.5,3681.1,0.136]
[1754009865200,6.533,3682.1,3681.2,0.02716505]
[1754009865371,1.9384,3682.7,3681.4,2.71628516]
[1754009865566,1.9384,3682.7,3681.2,2.4099]
[1754009865762,1.9384,3682.7,3681.8,2.71604448]
[1754009865968,1.9384,3682.7,3681.4,2.71634096]
[1754009866163,2.0949115,3682.2,3681.3,2.71640878]
[1754009866368,0.20949115,3682.1,3681.2,2.71647429]
[1754009866569,0.20949115,3682.1,3681.2,3.0]
[1754009866902,0.08500882,3682.0,3681.3,2.71637673]
[1754009867196,0.08500882,3681.9,3681.0,2.2885]
[1754009867403,2.0949115,3682.2,3681.7,2.71613656]
[1754009867404,0.08500882,3681.8,3681.7,2.71613656]
[1754009867970,0.08500882,3681.8,3681.7,5.00463656]
[1754009868195,0.08500882,3681.8,3681.7,5.77672744]
[1754009868371,0.1565115,3682.2,3682.1,2.7158415]
[1754009868924,0.1565115,3682.2,3682.1,5.0043415]
[1754009870085,0.1565115,3682.2,3682.1,2.91930234]
[1754009870485,0.1565115,3682.2,3682.1,8.23496075]
[1754009870691,0.1565115,3682.2,3682.1,9.30289731]
[1754009871011,0.1565115,3682.2,3682.1,5.91930234]
[1754009871310,0.1565115,3682.2,3682.1,8.20780234]
[1754009871511,0.1565115,3682.2,3682.1,5.91930234]
[1754009871726,0.1565115,3682.2,3682.1,3.20346084]
[1754009871927,0.1565115,3682.2,3681.3,0.4461]
[1754009872227,0.1565115,3682.2,3682.1,5.7158415]
[1754009872389,0.1565115,3682.2,3682.1,8.84752392]
[1754009873130,0.1565115,3682.2,3682.1,6.1619415]
[1754009873275,0.1565115,3682.2,3682.1,5.7158415]
[1754009873476,0.1565115,3682.2,3682.1,3.0]
[1754009873688,0.1565115,3682.2,3682.1,5.7158415]
[1754009873882,0.1565115,3682.2,3681.3,0.20734977]
[1754009874111,0.1565115,3682.2,3681.0,0.4461]
[1754009874300,0.35896265,3682.2,3681.1,5.282]
[1754009874473,0.35896265,3682.2,3681.2,3.0]
[1754009874681,0.35896265,3682.2,3681.1,5.282]
[1754009874880,0.35896265,3682.2,3681.3,1.8424]
[1754009874881,0.1565115,3682.2,3681.3,1.8424]
[1754009875116,0.1565115,3682.2,3682.1,2.7158415]
[1754009875289,0.1565115,3682.2,3682.1,2.8518415]
[1754009875609,0.1565115,3682.2,3682.1,0.136]
[1754009876591,0.1565115,3682.2,3682.1,2.8518415]
[1754009876791,0.1565115,3682.2,3682.1,0.136]
[1754009876979,0.1565115,3682.2,3682.1,2.8518415]
[1754009877308,0.1565115,3682.2,3682.1,5.1403415]
[1754009877809,0.1565115,3682.2,3682.1,3.2979415]
[1754009878586,0.1565115,3682.2,3682.1,5.1403415]
[1754009879116,0.1565115,3682.2,3682.1,6.45376914]
[1754009879280,0.1565115,3682.2,3682.1,2.8518415]
[1754009879624,0.1565115,3682.2,3682.1,5.1403415]
[1754009880919,0.1565115,3682.2,3682.1,0.136]
[1754009881090,0.1565115,3682.2,3682.1,5.8518415]
[1754009881425,0.136,3683.5,3683.4,2.71488298]
[1754009881631,0.136,3683.5,3682.9,3.02715251]
[1754009881778,0.136,3683.5,3682.3,2.715674]
[1754009881779,2.004,3683.5,3682.8,5.71529939]
[1754009881978,0.55,3683.4,3682.7,3.0]
[1754009882210,0.136,3683.9,3683.3,0.136]
[1754009882518,0.2004,3683.9,3683.4,2.71486775]
[1754009882696,0.55,3683.8,3683.5,0.136]
[1754009883224,1.868,3684.3,3682.9,9.82861052]
[1754009883514,0.03392866,3684.2,3682.9,1.8424]
[1754009883732,2.418,3684.1,3683.0,2.71512441]
[1754009884044,2.418,3684.1,3683.5,2.71480523]
[1754009884045,0.55,3683.9,3683.5,2.71480523]
[1754009884327,0.55,3683.9,3683.7,2.8506511]
[1754009884569,0.55,3683.9,3683.7,0.136]
[1754009884744,0.55,3684.2,3683.7,0.136]
[1754009884944,0.55,3684.0,3683.7,0.136]
[1754009885246,0.004,3684.5,3683.7,0.2044025]
[1754009885553,1.872,3684.5,3683.9,2.71448539]
[1754009885754,0.004,3684.5,3684.4,2.71414612]
[1754009886291,0.004,3684.5,3683.9,1.8424]
[1754009886494,1.868,3684.4,3683.5,0.19961007]
[1754009886790,0.55,3684.2,3683.2,2.7150304]
[1754009887085,0.55,3684.2,3683.8,2.71454072]
[1754009887232,0.55,3684.2,3683.7,2.71464907]
[1754009887433,0.55,3684.0,3683.5,0.20462683]
[1754009887634,0.55,3684.1,3683.7,2.7146105]
[1754009887848,0.4275,3684.6,3683.2,3.0]
[1754009887849,0.60334695,3688.1,3683.9,4.738285]
[1754009888172,1.868,3687.9,3684.5,2.864]
[1754009888401,1.868,3687.9,3686.0,3.0]
[1754009888722,10.54674665,3689.7,3686.0,3.0]
[1754009888723,5.264,3689.1,3687.5,2.7118644]
[1754009888848,6.524,3689.8,3687.5,2.7118644]
[1754009889189,1.868,3688.9,3687.5,5.02748304]
[1754009889352,1.868,3688.9,3687.3,2.71200552]
[1754009889353,0.4275,3689.1,3687.0,1.8424]
[1754009889548,1.868,3688.4,3687.5,2.7118644]
[1754009889788,1.868,3688.4,3687.3,2.71194879]
[1754009890098,1.868,3688.0,3686.5,4.55498678]
[1754009890283,0.03389462,3687.9,3686.5,1.8424]
[1754009890488,2.2955,3687.5,3686.4,0.20644801]
[1754009890683,0.81400246,3687.4,3685.4,0.4461]
[1754009890975,0.81400246,3687.4,3684.8,2.2885]
[1754009890976,0.55,3687.2,3684.8,2.2885]
[1754009891181,0.55,3687.0,3685.3,2.71347428]
[1754009891378,0.55,3686.8,3684.8,2.2885]
[1754009891697,1.868,3687.3,3684.9,0.4461]
[1754009891901,0.00553242,3687.6,3685.8,2.71311519]
[1754009892052,0.00553242,3687.6,3686.2,2.71282079]
[1754009892254,0.00553242,3687.6,3687.3,2.71198708]
[1754009892453,0.00553242,3687.6,3686.3,0.02712747]
[1754009892454,0.00553242,3687.6,3687.5,2.7118644]
[1754009892879,0.00553242,3687.6,3687.5,2.2885]
[1754009893081,0.00553242,3687.6,3687.5,5.0003644]
[1754009893290,0.00553242,3687.6,3686.6,2.71251361]
[1754009893488,0.00553242,3687.6,3687.4,2.71187039]
[1754009893709,0.00553242,3687.6,3686.9,2.2885]
[1754009893864,0.55553242,3687.6,3686.4,2.2885]
[1754009894072,0.55553242,3687.6,3686.4,0.19984233]
[1754009894384,0.00553242,3687.6,3686.5,2.2885]
[1754009894594,0.00553242,3687.6,3687.5,2.7118644]
[1754009895070,1e-08,3687.6,3687.5,5.19969317]
[1754009895264,1e-08,3687.6,3687.5,5.33489317]
[1754009895883,1e-08,3687.6,3687.5,0.33452877]
[1754009896192,1e-08,3687.6,3687.5,5.33089317]
[1754009896398,1e-08,3687.6,3687.5,0.33052877]
[1754009896595,1e-08,3687.6,3687.5,2.7118644]
[1754009896794,1e-08,3687.6,3687.5,2.8470644]
[1754009897000,1e-08,3687.6,3687.5,0.1352]
[1754009897371,0.55,3687.5,3686.9,0.136]
[1754009897580,0.55,3687.3,3686.2,2.3668282]
[1754009897763,1e-08,3687.6,3687.3,0.136]
[1754009898100,1e-08,3687.6,3687.2,0.136]
[1754009898304,1e-08,3687.6,3686.3,0.4344]
[1754009898305,0.55,3687.5,3686.3,0.4344]
[1754009898509,0.6852,3687.5,3687.0,0.136]
[1754009898711,0.55,3687.3,3686.3,0.20747461]
[1754009898917,0.55,3686.6,3686.1,0.136]
[1754009899275,0.55,3686.4,3686.1,0.136]
[1754009899477,0.55,3686.2,3686.1,0.136]
[1754009899782,0.55,3686.2,3685.1,1.9053]
[1754009899783,1.8655,3687.1,3686.0,0.20120231]
[1754009899985,1.8655,3687.1,3685.0,0.22885]
[1754009899986,1.17665,3687.0,3685.0,2.56855]
[1754009900192,1.17665,3687.0,3685.6,0.136]
[1754009900193,0.55,3686.1,3685.6,0.136]
[1754009900374,0.55,3686.1,3684.3,7.96121217]
[1754009900375,2.3056,3686.9,3686.0,2.71294716]
[1754009900574,0.686,3686.8,3686.1,2.71283755]
[1754009900788,1.8655,3687.5,3686.1,2.3397]
[1754009901120,0.00460853,3689.0,3686.2,3.74641196]
[1754009901281,1.8655,3688.9,3686.2,0.71928376]
[1754009901485,0.00460853,3689.0,3687.3,2.71198321]
[1754009901663,0.00460853,3689.0,3688.5,2.7111221]
[1754009901862,0.00460853,3689.0,3688.1,2.71135785]
[1754009902095,0.00460853,3689.0,3687.5,2.7118644]
[1754009902297,0.00460853,3689.0,3687.5,0.50515644]
[1754009902496,1.8655,3688.9,3687.4,2.3397]
[1754009902700,0.00460853,3689.0,3688.3,2.71126296]
[1754009902897,0.00460853,3689.0,3688.2,2.71134536]
[1754009903084,0.00460853,3689.0,3688.4,2.71118354]
[1754009903304,0.00460853,3689.0,3688.5,2.71107479]
[1754009903508,0.00460853,3689.0,3688.8,2.71085991]
[1754009903812,0.00460853,3689.0,3688.2,2.3397]
[1754009903977,0.00460853,3689.0,3687.7,5.71171733]
[1754009903978,0.00460853,3689.0,3688.7,2.3397]
[1754009904180,0.00460853,3689.0,3688.9,2.7108352]
[1754009904921,0.00460853,3689.0,3688.9,5.0505352]
[1754009905227,0.15394574,3690.4,3689.5,2.71035024]
[1754009905395,0.15394574,3690.4,3689.4,2.71044151]
[1754009905579,0.15394574,3690.4,3688.4,3.0]
[1754009905580,2.679917,3691.8,3689.5,2.3253]
[1754009905786,1.8655,3691.8,3689.6,0.42]
[1754009906000,1.8655,3691.8,3690.4,2.70966552]
[1754009906211,6.13708182,3691.7,3689.7,1.9053]
[1754009906438,6.13708182,3691.7,3688.3,0.50510791]
[1754009906439,38.2963455,3691.5,3688.3,0.50510791]
[1754009906591,7.5446,3691.4,3689.1,1.9053]
[1754009906909,0.55,3691.3,3689.7,2.71020422]
[1754009907111,0.61370818,3691.6,3689.7,0.20229829]
[1754009907430,2.3056,3691.5,3689.9,2.71008642]
[1754009907630,1.02396249,3691.4,3689.6,0.20388622]
[1754009907934,1.02396249,3691.4,3688.5,2.7111216]
[1754009907935,0.55,3691.2,3688.6,5.323]
[1754009908095,2.3056,3691.3,3689.7,2.71022185]
[1754009908448,2.3056,3691.3,3688.5,2.71111649]
[1754009908449,0.55,3691.1,3688.6,0.20708244]
[1754009908729,0.55,3690.9,3688.7,0.4136]
[1754009908934,0.55,3690.7,3688.7,0.4136]
[1754009909113,0.55,3690.5,3688.0,0.4102]
[1754009909279,0.55,3690.3,3688.0,0.61848356]
[1754009909606,0.55,3690.1,3688.0,0.61848356]
[1754009909775,0.55,3689.9,3688.1,0.25237836]
[1754009909975,0.55,3689.7,3688.1,0.25237836]
[1754009910179,0.55,3689.7,3688.2,2.312]
[1754009910381,0.55,3689.5,3688.2,2.71128899]
[1754009910711,0.55,3689.3,3688.0,2.91971161]
[1754009910909,0.55,3689.1,3688.0,0.20828356]
[1754009911111,0.55,3689.1,3688.1,2.71134979]
[1754009911310,3.55,3689.1,3687.7,1.9053]
[1754009911613,0.80926,3691.0,3688.1,0.1352]
[1754009911786,1.8655,3691.2,3688.4,3.804157]
[1754009911987,0.4401,3691.3,3687.8,5.46386]
[1754009911988,0.1352,3690.6,3690.1,0.1352]
[1754009912177,1.8655,3690.9,3689.4,2.1476]
[1754009912375,0.1352,3690.7,3690.1,0.1352]
[1754009912604,0.3386568,3690.7,3690.1,0.1352]
[1754009912799,0.3386568,3690.7,3690.3,2.70974579]
[1754009913109,0.1352,3691.4,3690.6,0.1352]
[1754009913309,1.8655,3691.3,3690.6,0.1352]
[1754009913518,0.1352,3690.7,3690.1,0.20680483]
[1754009913724,0.55,3690.5,3689.7,0.1352]
[1754009913880,0.55,3690.1,3689.7,0.1352]
[1754009914217,0.55,3690.1,3689.7,0.3408644]
[1754009914418,0.86007,3690.1,3689.7,0.3408644]
[1754009914590,0.86007,3690.1,3689.7,0.2056644]
[1754009914792,0.86007,3690.1,3689.7,0.1352]
[1754009915180,0.55,3689.9,3689.7,0.33744311]
[1754009915387,0.55,3689.9,3689.7,0.20224311]
[1754009915586,0.55,3689.9,3689.5,0.1352]
[1754009915912,2.4155,3689.9,3689.5,0.1352]
[1754009916224,0.55,3689.7,3689.5,0.2053793]
[1754009916378,0.16907901,3689.6,3687.5,0.2079]
[1754009916577,0.1352,3688.5,3688.0,0.1352]
[1754009916821,0.1352,3688.5,3688.0,0.33491787]
[1754009916822,0.55,3688.4,3688.0,0.33491787]
[1754009916993,0.1352,3688.5,3688.1,2.1115]
[1754009917389,0.55,3689.2,3688.2,2.1115]
[1754009917577,0.1352,3689.1,3688.4,0.1352]
[1754009917780,0.1352,3689.3,3688.8,0.1352]
[1754009918088,0.1352,3691.7,3689.3,3.0]
[1754009918293,0.1352,3691.3,3689.5,3.0]
[1754009918496,0.1352,3691.3,3689.7,3.0]
[1754009918723,5.227,3691.7,3689.7,3.0]
[1754009918926,0.1352,3691.3,3690.7,0.1352]
[1754009919127,1.8655,3691.6,3690.5,2.70959987]
[1754009919328,0.1352,3691.5,3691.0,0.1352]
[1754009919538,0.1352,3691.3,3690.8,0.1352]
[1754009919712,0.1352,3691.3,3689.8,1.9053]
[1754009919713,1.8655,3691.2,3690.7,0.1352]
[1754009919920,0.1352,3691.0,3690.5,0.1352]
[1754009920211,1.8655,3690.9,3689.7,0.2895913]
[1754009920533,0.1352,3690.6,3690.0,0.1352]
[1754009921132,5.225,3691.2,3689.8,2.73726585]
[1754009921301,0.1352,3691.0,3690.4,0.1352]
[1754009921995,0.677707,3691.1,3690.6,0.1352]
[1754009922622,2.3056,3691.0,3689.6,0.1352]
[1754009923132,0.03386707,3690.9,3689.6,0.1352]
[1754009923292,2.15369741,3690.8,3689.0,0.3415]
[1754009923491,0.1352,3690.1,3689.0,0.3415]
[1754009923690,2.15369741,3690.8,3689.0,0.20302579]
[1754009923691,7.0885,3690.0,3689.0,0.20302579]
[1754009923936,0.1352,3689.6,3689.1,0.1352]
[1754009924546,5.222,3689.8,3688.7,2.267]
[1754009924692,0.1352,3689.9,3689.4,2.71040338]
[1754009924894,0.1352,3690.0,3689.5,0.1352]
[1754009925090,0.1352,3690.0,3689.5,0.2482]
[1754009925312,5.3572,3690.3,3689.7,2.71023889]
[1754009925630,0.28819741,3690.8,3689.7,0.55]
[1754009925631,0.1352,3690.5,3689.7,0.55]
[1754009925854,5.50919741,3690.8,3690.1,0.55]
[1754009926050,0.42339741,3690.8,3690.5,0.55]
[1754009926212,5.221,3691.2,3690.5,0.55]
[1754009926544,0.1352,3691.1,3690.6,0.1352]
[1754009926736,5.221,3691.2,3690.6,0.1352]
[1754009926938,5.3562,3691.2,3690.7,0.55]
[1754009927316,1.86856524,3691.1,3690.6,0.1352]
[1754009927663,0.1352,3690.7,3690.0,0.1352]
[1754009927943,1.8347,3690.6,3689.7,2.71019731]
[1754009928122,0.1352,3690.3,3689.8,0.1352]
[1754009928518,0.1352,3690.3,3689.9,0.14904254]
[1754009928835,0.1352,3690.3,3689.9,0.99]
[1754009929038,0.1352,3690.3,3689.9,0.55]
[1754009929449,0.1352,3690.8,3690.2,0.1352]
[1754009929614,0.92633765,3690.8,3690.2,0.1352]
[1754009929814,0.92633765,3690.8,3690.2,0.28410826]
[1754009930120,0.92633765,3690.8,3690.3,0.14892186]
[1754009930321,0.92633765,3690.8,3690.3,0.14901387]
[1754009930527,0.92633765,3690.8,3690.2,0.1352]
[1754009930728,0.1352,3690.8,3690.3,0.55]
[1754009930921,0.1352,3690.8,3690.2,0.1352]
[1754009930922,5.218,3690.9,3690.5,0.55]
[1754009932948,5.218,3690.9,3689.1,2.71066983]
[1754009932949,1.9699,3690.8,3690.3,0.55]
[1754009933145,1.9699,3690.8,3690.2,0.1352]
[1754009933730,2.68869,3690.8,3690.2,0.1352]
[1754009933912,2.68869,3690.8,3690.3,0.55]
[1754009934741,5.214,3690.7,3690.3,2.9329]
[1754009934945,5.214,3690.7,3690.3,5.20269565]
[1754009935109,5.214,3690.7,3690.5,0.55]
[1754009935525,5.214,3690.7,3690.5,0.42062677]
[1754009936715,5.214,3690.7,3689.9,3.15009864]
[1754009936716,5.214,3690.7,3689.9,3.15007894]
[1754009936920,5.214,3690.7,3690.3,0.1352]
[1754009937249,5.74892,3690.7,3690.3,0.1352]
[1754009937746,5.74592,3690.7,3690.3,0.1352]
[1754009938322,5.211,3690.7,3690.3,0.1352]
[1754009938848,1.8347,3690.6,3690.4,0.55]
[1754009939029,0.1352,3690.8,3690.3,0.55]
[1754009939230,5.209,3690.7,3690.3,0.55]
[1754009939624,7.0437,3690.7,3690.3,0.55]
[1754009939829,5.208,3690.6,3690.3,0.55]
[1754009940347,1.86857074,3690.5,3690.3,0.55]
[1754009940650,0.1352,3690.5,3690.1,0.55]
[1754009941152,5.207,3690.4,3690.1,0.55]
[1754009941451,5.207,3690.4,3690.2,0.1352]
[1754009941749,0.1352,3690.5,3690.1,0.55]
[1754009941954,5.206,3690.5,3690.3,0.55]
[1754009942116,0.1352,3690.8,3690.4,0.44]
[1754009942321,6.514,3691.7,3690.5,0.57709659]
[1754009942628,6.514,3691.7,3691.3,0.1352]
[1754009942814,5.205,3691.6,3691.3,0.1352]
[1754009943015,5.205,3691.6,3691.4,0.55]
[1754009943218,7.02919,3691.6,3690.0,2.70995497]
[1754009943427,7.02919,3691.6,3690.9,0.55]
[1754009943428,0.1352,3691.4,3690.9,0.55]
[1754009943651,1.8685634,3691.3,3690.9,0.5492]
[1754009943830,1.8685634,3691.3,3690.8,0.1352]
[1754009943831,1.9699,3691.3,3690.8,0.1352]
[1754009944590,0.1352,3691.3,3690.6,0.1352]
[1754009945651,1.8347,3691.2,3690.2,0.55]
[1754009945851,0.1352,3691.0,3690.6,0.55]
[1754009946051,7.1719,3691.0,3690.6,0.55]
[1754009946528,7.1719,3691.0,3690.2,0.55]
[1754009947450,7.1719,3691.0,3690.1,2.3829]
[1754009947451,7.1719,3691.0,3690.5,0.55]
[1754009947617,2.29,3690.9,3689.8,0.55]
[1754009947822,0.1352,3690.8,3690.3,0.55]
[1754009948017,1.86856891,3690.7,3690.3,0.55]
[1754009948248,1.8347,3690.6,3690.3,0.55]
[1754009948455,5.199,3690.5,3690.3,0.55]
[1754009948848,5.199,3690.8,3690.4,0.44]
[1754009949055,5.199,3690.8,3690.5,0.55]
[1754009949362,3.20359,3691.6,3690.5,0.44]
[1754009949665,0.1352,3691.2,3690.8,0.55]
[1754009950053,6.169759,3691.5,3690.8,0.55]
[1754009950251,0.1352,3691.4,3690.8,0.55]
[1754009950452,5.197,3691.3,3690.8,0.55]
[1754009950762,5.197,3691.3,3690.8,2.9329]
[1754009950945,5.197,3691.3,3690.8,0.55]
[1754009951152,1.86856432,3691.2,3690.8,0.55]
[1754009951349,6.0108659,3691.3,3690.8,0.55]
[1754009951730,7.8455659,3691.3,3690.8,0.55]
[1754009952262,5.194,3691.2,3690.8,0.55]
[1754009952672,5.194,3691.2,3691.0,0.55]
[1754009952839,5.7134,3691.2,3688.8,2.71088929]
[1754009953165,5.7134,3691.2,3689.4,2.3829]
[1754009953334,5.7134,3691.2,3690.5,0.55]
[1754009953534,5.8486,3691.2,3690.8,0.55]
[1754009953730,0.5194,3691.2,3690.4,0.1352]
[1754009953962,5.22586524,3691.1,3690.5,0.24804556]
[1754009954263,3.29182379,3691.0,3690.7,0.55]
[1754009954463,3.29182379,3691.0,3690.9,0.55]
[1754009954636,3.29182379,3691.0,3690.9,0.79804556]
[1754009955036,5.58182379,3691.0,3690.6,0.55]
[1754009955272,5.58182379,3691.0,3689.7,2.3829]
[1754009955273,0.1352,3690.8,3690.3,0.1352]